bitfinex-derivatives/quotes_BTCF0:USTF0_20260207
["timestamp","ask_amount","ask_price","bid_price","bid_amount"]
[1770472310427,0.53515407,69117.0,69077.0,0.55174692]
[1770472311817,0.52874606,69105.0,69077.0,0.55174692]
[1770472315126,0.52874606,69104.0,69077.0,0.55174692]
[1770472318533,0.57644486,69105.0,69079.0,0.55174692]
[1770472318828,0.57644486,69105.0,69091.0,0.55174692]
[1770472319029,0.52874606,69112.0,69091.0,0.55174692]
[1770472320223,0.52874606,69112.0,69061.0,0.08698]
[1770472320224,0.52874606,69112.0,69082.0,0.55174692]
[1770472320422,0.52874606,69112.0,69091.0,0.001]
[1770472321130,0.52874606,69126.0,69091.0,0.55274692]
[1770472321727,0.52874606,69126.0,69098.0,0.014489]
[1770472321924,0.52874606,69126.0,69101.0,0.55174692]
[1770472322125,0.52874606,69126.0,69097.0,0.014489]
[1770472322428,0.52874606,69106.0,69032.0,0.11573676]
[1770472322628,0.52874606,69069.0,69035.0,0.55174692]
[1770472323329,0.52874606,69067.0,69035.0,0.55174692]
[1770472323531,0.00012603,69066.0,69035.0,0.55174692]
[1770472323733,0.52874606,69065.0,69035.0,0.55174692]
[1770472324032,0.52874606,69063.0,69035.0,0.55174692]
[1770472324834,0.52874606,69061.0,69035.0,0.55174692]
[1770472325136,0.52874606,69060.0,69035.0,0.55174692]
[1770472326031,0.00012603,69059.0,69035.0,0.55174692]
[1770472326227,0.00012603,69058.0,69035.0,0.55174692]
[1770472326429,0.52874606,69060.0,69035.0,0.55174692]
[1770472327532,0.43317976,69095.0,69028.0,0.45468888]
[1770472327533,0.57753277,69049.0,69028.0,0.45468888]
[1770472327837,0.57753277,69047.0,69028.0,0.45468888]
[1770472328031,0.57753277,69046.0,69028.0,0.45468888]
[1770472328334,0.57753277,69045.0,69028.0,0.45468888]
[1770472328534,0.57753277,69045.0,69028.0,0.43027384]
[1770472328730,0.57753277,69045.0,69005.0,0.014508]
[1770472328731,0.57753277,69043.0,69021.0,0.57380852]
[1770472329037,0.58333333,69041.0,69004.0,0.40504]
[1770472329230,0.58333333,69039.0,69005.0,0.009078]
[1770472329630,0.58030733,69038.0,69005.0,0.009078]
[1770472329927,0.58030733,69036.0,69005.0,0.009078]
[1770472330433,0.58030733,69029.0,68998.0,0.009078]
[1770472330637,0.14691965,69030.0,68998.0,0.009078]
[1770472330638,0.58024066,69027.0,68998.0,0.009078]
[1770472330933,0.58024066,69025.0,68998.0,0.009078]
[1770472331130,0.58024066,69025.0,68991.0,0.009278]
[1770472331326,0.58024066,69023.0,69005.0,0.001]
[1770472331636,0.57809672,69021.0,68991.0,0.009278]
[1770472331837,0.57809672,69019.0,68991.0,0.009278]
[1770472332025,0.57809672,69017.0,68991.0,0.009278]
[1770472332230,0.57809672,69015.0,68983.0,0.01570983]
[1770472332539,0.57809672,69013.0,68983.0,0.01570983]
[1770472333239,0.57809672,69022.0,68985.0,0.03552057]
[1770472333738,0.57809672,69022.0,68967.0,0.63616618]
[1770472333739,0.57809672,69022.0,68987.0,0.03552057]
[1770472334436,0.57809672,69022.0,68989.0,0.03552057]
[1770472334834,0.57809672,69022.0,68970.0,0.014516]
[1770472334835,0.57399084,69029.0,68997.0,0.01451]
[1770472335034,0.57399084,69029.0,68998.0,0.03552057]
[1770472335639,0.57761543,69039.0,69006.0,0.01715369]
[1770472335839,0.57761543,69039.0,69007.0,0.014508]
[1770472336137,0.57761543,69039.0,69008.0,0.01715369]
[1770472337239,0.57761543,69039.0,68986.0,0.014512]
[1770472337240,0.57761543,69039.0,69010.0,0.01715369]
[1770472338235,0.57761543,69039.0,69012.0,0.01413951]
[1770472338436,0.57761543,69039.0,69019.0,0.26233464]
[1770472339639,0.00017992,69038.0,69019.0,0.26233464]
[1770472340241,0.57761543,69039.0,69015.0,0.01741629]
[1770472340842,0.5775279,69037.0,69015.0,0.01741629]
[1770472341140,0.5775279,69036.0,69015.0,0.01741629]
[1770472341643,0.57777439,69044.0,69017.0,0.01667682]
[1770472342234,0.57777439,69044.0,69019.0,0.01667682]
[1770472342434,0.57777439,69044.0,69020.0,0.014505]
[1770472342635,0.57777439,69044.0,69021.0,0.01667682]
[1770472342834,0.57777439,69059.0,69021.0,0.01667682]
[1770472343034,0.57777439,69057.0,69021.0,0.01667682]
[1770472343236,0.57777439,69055.0,69021.0,0.01667682]
[1770472343436,0.57644253,69053.0,69021.0,0.01667682]
[1770472343634,0.57644253,69051.0,69015.0,0.0206724]
[1770472343846,0.57644253,69049.0,69016.0,0.014506]
[1770472344141,0.57644253,69047.0,69017.0,0.0206724]
[1770472344336,0.57644253,69045.0,69017.0,0.0206724]
[1770472344542,0.57644253,69044.0,69017.0,0.0206724]
[1770472344737,0.57644253,69043.0,69019.0,0.001]
[1770472344931,0.57644253,69043.0,69019.0,0.0216724]
[1770472345332,0.57644253,69043.0,69019.0,0.0206724]
[1770472345736,0.57399084,69059.0,69019.0,0.0206724]
[1770472345936,0.57399084,69057.0,69019.0,0.0206724]
[1770472346136,0.57399084,69055.0,69019.0,0.0206724]
[1770472346336,0.57399084,69053.0,69024.0,0.03470078]
[1770472346738,0.43317976,69083.0,69019.0,0.001]
[1770472346739,0.57399084,69079.0,69040.0,0.03470078]
[1770472347040,0.14691965,69080.0,69041.0,0.03470078]
[1770472347041,0.57399084,69077.0,69041.0,0.03470078]
[1770472347440,0.57399084,69075.0,69041.0,0.03470078]
[1770472347641,0.57399084,69075.0,69043.0,0.03089272]
[1770472347942,0.58333333,69072.0,69026.0,0.014504]
[1770472348144,0.58333333,69070.0,69056.0,0.14170782]
[1770472348339,0.58333333,69070.0,69049.0,0.04212921]
[1770472348645,0.43317976,69076.0,69049.0,0.04212921]
[1770472348941,0.58333333,69078.0,69052.0,0.014498]
[1770472349540,0.58333333,69078.0,69058.0,0.014497]
[1770472349747,0.43317976,69082.0,69056.0,0.14166857]
[1770472349943,0.58333333,69087.0,69060.0,0.014497]
[1770472350341,0.58333333,69087.0,69063.0,0.014496]
[1770472351245,0.43317976,69093.0,69057.0,0.014497]
[1770472351647,0.58333333,69096.0,69072.0,0.014494]
[1770472352545,0.58333333,69096.0,69056.0,0.14166857]
[1770472352742,0.58333333,69094.0,69056.0,0.14166857]
[1770472352940,0.58333333,69087.0,69056.0,0.14166857]
[1770472353144,0.58333333,69085.0,69056.0,0.14166857]
[1770472353345,0.58333333,69083.0,69056.0,0.14166857]
[1770472353643,0.58333333,69074.0,69056.0,0.14166857]
[1770472353846,0.58333333,69072.0,69056.0,0.14166857]
[1770472356446,0.00011488,69071.0,69056.0,0.02614331]
[1770472356638,0.58333333,69072.0,69056.0,0.02614331]
[1770472357750,0.58333333,69072.0,69034.0,0.1215]
[1770472357948,0.58333333,69072.0,69055.0,0.14369578]
[1770472358148,0.58333333,69072.0,69048.0,0.14669639]
[1770472358352,0.58333333,69072.0,69048.0,0.16119539]
[1770472359959,0.00012259,69071.0,69048.0,0.16119539]
[1770472360149,0.58333333,69072.0,69048.0,0.16119539]
[1770472360346,0.58333333,69072.0,69052.0,0.014498]
[1770472360550,0.0001341,69071.0,69055.0,0.14324639]
[1770472360751,0.0001341,69071.0,69059.0,0.014497]
[1770472361347,0.58333333,69082.0,69059.0,0.014497]
[1770472361749,0.58333333,69082.0,69055.0,0.15774439]
[1770472362355,0.58333333,69080.0,69055.0,0.14324639]
[1770472362553,0.58333333,69078.0,69055.0,0.14324639]
[1770472362757,0.58333333,69078.0,69056.0,0.014498]
[1770472362958,1.01651309,69084.0,69059.0,0.014497]
[1770472363154,0.58333333,69083.0,69055.0,0.14324639]
[1770472363348,0.58333333,69083.0,69064.0,0.014496]
[1770472364348,0.58333333,69083.0,69055.0,0.14424639]
[1770472364553,0.00013446,69082.0,69055.0,0.14424639]
[1770472364753,0.58333333,69083.0,69055.0,0.14324639]
[1770472364960,0.58333333,69083.0,69065.0,0.014496]
[1770472365159,0.00013815,69082.0,69065.0,0.014496]
[1770472365363,0.58333333,69083.0,69065.0,0.014496]
[1770472365559,0.00013594,69082.0,69065.0,0.014496]
[1770472365755,0.00013283,69081.0,69065.0,0.014496]
[1770472365951,0.58333333,69083.0,69065.0,0.014496]
[1770472366157,0.58333333,69083.0,69067.0,0.014495]
[1770472366662,0.43317976,69085.0,69069.0,0.014495]
[1770472366862,0.43317976,69086.0,69069.0,0.014495]
[1770472367757,0.43317976,69086.0,69057.0,0.014497]
[1770472368458,0.43317976,69086.0,69068.0,0.014495]
[1770472368856,0.00010638,69085.0,69070.0,0.26233464]
[1770472369062,0.43317976,69086.0,69070.0,0.26233464]
[1770472369365,0.43317976,69086.0,69068.0,0.014495]
[1770472369661,0.00013889,69085.0,69068.0,0.014495]
[1770472369866,0.00011855,69084.0,69068.0,0.014495]
[1770472370161,0.43317976,69086.0,69068.0,0.014495]
[1770472370351,0.43317976,69086.0,69070.0,0.014495]
[1770472370549,0.57644486,69096.0,69055.0,0.14324639]
[1770472370756,0.00013889,69095.0,69092.0,0.01449]
[1770472370961,0.58333333,69112.0,69093.0,0.01449]
[1770472371162,0.58333333,69112.0,69089.0,0.014491]
[1770472371362,0.58333333,69112.0,69091.0,0.01449]
[1770472371557,0.1470315,69130.0,69098.0,0.014489]
[1770472371769,0.58333333,69129.0,69098.0,0.014489]
[1770472372160,0.58333333,69129.0,69102.0,0.014488]
[1770472372364,0.58333333,69129.0,69079.0,0.072465]
[1770472372564,0.58333333,69129.0,69105.0,0.014487]
[1770472372865,0.58333333,69129.0,69112.0,0.014486]
[1770472373062,0.58333333,69140.0,69112.0,0.014486]
[1770472373261,0.58333333,69140.0,69113.0,0.00229672]
[1770472373460,0.0002,69135.0,69114.0,0.014485]
[1770472373662,0.0002,69135.0,69129.0,0.14173226]
[1770472374370,0.0002,69135.0,69122.0,0.14252859]
[1770472374666,0.58256775,69140.0,69122.0,0.14252859]
[1770472375167,0.58256775,69140.0,69117.0,0.014485]
[1770472375763,0.0002,69138.0,69114.0,0.00051039]
[1770472376471,0.0002,69138.0,69120.0,0.014484]
[1770472376969,0.58256775,69140.0,69120.0,0.014484]
[1770472377165,0.58256775,69140.0,69129.0,0.14474384]
[1770472378270,0.58256775,69140.0,69122.0,0.14290504]
[1770472380767,0.58256775,69140.0,69104.0,0.014488]
[1770472381968,0.58256775,69140.0,69116.0,0.14697244]
[1770472384164,0.58256775,69140.0,69109.0,0.14485794]
[1770472384369,0.53742592,69129.0,69094.0,0.10522367]
[1770472384569,0.53742592,69129.0,69095.0,0.38204731]
[1770472385376,0.53742592,69129.0,69095.0,0.36755831]
[1770472385565,0.53742592,69129.0,69103.0,0.1426836]
[1770472386777,0.53742592,69129.0,69096.0,0.14737648]
[1770472389576,0.55640394,69128.0,69096.0,0.14737648]
[1770472390374,0.98631258,69128.0,69096.0,0.14737648]
[1770472390573,0.57131914,69127.0,69096.0,0.14737648]
[1770472390776,0.57131914,69127.0,69088.0,0.34870804]
[1770472390981,0.57131914,69127.0,69089.0,0.14462461]
[1770472391172,0.42990864,69124.0,69089.0,0.14462461]
[1770472391368,0.42990864,69124.0,69097.0,0.36345547]
[1770472391369,0.57131914,69123.0,69097.0,0.36345547]
[1770472391574,0.57131914,69130.0,69107.0,0.36345547]
[1770472391781,0.57131914,69130.0,69110.0,0.014486]
[1770472392281,0.57131914,69130.0,69110.0,0.37794147]
[1770472392784,0.57131914,69130.0,69110.0,0.36345547]
[1770472392974,0.57131914,69148.0,69114.0,0.36345547]
[1770472393376,0.57131914,69146.0,69114.0,0.36345547]
[1770472393578,0.57131914,69146.0,69104.0,0.014487]
[1770472393579,0.57131914,69146.0,69116.0,0.37123851]
[1770472393779,0.57131914,69146.0,69118.0,0.014485]
[1770472394172,0.57131914,69146.0,69118.0,0.37123851]
[1770472394380,0.57131914,69146.0,69120.0,0.014484]
[1770472394585,0.57131914,69141.0,69120.0,0.014484]
[1770472394889,0.57131914,69141.0,69124.0,0.014483]
[1770472399189,0.57131914,69141.0,69124.0,0.37554307]
[1770472399579,0.0002,69145.0,69124.0,0.37554307]
[1770472399776,0.57151914,69145.0,69124.0,0.37554307]
[1770472399979,0.57131914,69145.0,69124.0,0.37554307]
[1770472400382,0.57131914,69145.0,69126.0,0.014483]
[1770472400983,0.42990864,69151.0,69134.0,0.37479447]
[1770472400984,0.0002,69146.0,69134.0,0.37479447]
[1770472401184,0.0002,69146.0,69134.0,0.36031347]
[1770472401989,0.57131914,69152.0,69134.0,0.36031347]
[1770472405190,0.0002,69157.0,69134.0,0.36031347]
[1770472405484,0.57151914,69157.0,69134.0,0.36031347]
[1770472406391,0.57131914,69157.0,69135.0,0.014481]
[1770472406590,0.57131914,69157.0,69134.0,0.36031347]
[1770472406792,0.57131914,69157.0,69135.0,0.014481]
[1770472407590,0.0002,69153.0,69135.0,0.014481]
[1770472407885,0.57151914,69153.0,69135.0,0.014481]
[1770472408791,0.57151914,69153.0,69134.0,0.36031347]
[1770472409591,0.57151914,69153.0,69136.0,0.37452881]
[1770472409892,0.57131914,69153.0,69136.0,0.37452881]
[1770472410093,0.57131914,69153.0,69132.0,0.38900881]
[1770472411190,0.57131914,69153.0,69122.0,0.014482]
[1770472411596,0.57131914,69153.0,69122.0,0.38676097]
[1770472411794,0.57131914,69153.0,69122.0,0.37227897]
[1770472412192,0.57131914,69151.0,69122.0,0.37227897]
[1770472413094,0.57131914,69151.0,69121.0,0.38676097]
[1770472413293,0.57151914,69151.0,69121.0,0.38676097]
[1770472413792,0.57151914,69151.0,69122.0,0.001]
[1770472414393,0.57131914,69142.0,69121.0,0.38676097]
[1770472414594,0.57131914,69142.0,69121.0,0.38776097]
[1770472415394,0.57131914,69142.0,69124.0,0.40018584]
[1770472415903,0.53281713,69148.0,69124.0,0.40018584]
[1770472416198,0.53281713,69148.0,69124.0,0.38570384]
[1770472416503,0.53261713,69148.0,69124.0,0.38570384]
[1770472419204,0.53261713,69148.0,69125.0,0.014482]
[1770472419405,0.53261713,69148.0,69131.0,0.39110121]
[1770472421193,0.53261713,69148.0,69125.0,0.40558321]
[1770472421396,0.53261713,69147.0,69125.0,0.40558321]
[1770472422193,0.96252577,69147.0,69128.0,0.38886699]
[1770472422400,0.42990864,69147.0,69133.0,0.01448]
[1770472422600,0.42990864,69151.0,69136.0,0.38886699]
[1770472423002,0.0002,69152.0,69136.0,0.38886699]
[1770472423202,0.53261713,69152.0,69136.0,0.38886699]
[1770472425402,0.57644486,69166.0,69121.0,0.014482]
[1770472425403,0.57644486,69166.0,69162.0,0.014474]
[1770472425600,0.57644486,69166.0,69137.0,0.072398]
[1770472425601,0.0002,69177.0,69158.0,0.014475]
[1770472425809,0.0002,69177.0,69176.0,0.14584631]
[1770472426003,0.00015,69177.0,69176.0,0.14584631]
[1770472426310,0.58333333,69181.0,69176.0,0.14584631]
[1770472426711,0.58328333,69181.0,69176.0,0.14584631]
[1770472427013,0.001,69177.0,69169.0,0.14379193]
[1770472427196,0.001,69177.0,69162.0,5e-05]
[1770472427602,0.53361713,69177.0,69148.0,0.16715039]
[1770472427805,0.53261713,69177.0,69148.0,0.16715039]
[1770472428197,0.53261713,69177.0,69143.0,0.014478]
[1770472429108,0.53261713,69177.0,69151.0,0.14695554]
[1770472430609,0.53261713,69177.0,69144.0,0.14349657]
[1770472433007,0.53261713,69177.0,69136.0,0.4191207]
[1770472433803,0.53261713,69177.0,69143.0,0.14571328]
[1770472434007,0.53261713,69177.0,69136.0,0.56298126]
[1770472434008,0.53261713,69177.0,69137.0,0.4000217]
[1770472436906,0.53261713,69177.0,69120.0,0.014483]
[1770472436907,0.53261713,69177.0,69115.0,0.38734961]
[1770472437112,0.53261713,69177.0,69117.0,0.014483]
[1770472437313,0.5769578,69176.0,69119.0,0.014483]
[1770472437512,0.53261713,69175.0,69125.0,0.14272532]
[1770472439413,0.53361713,69175.0,69125.0,0.14272532]
[1770472440114,0.53261713,69175.0,69125.0,0.14272532]
[1770472440311,0.53361713,69175.0,69125.0,0.14272532]
[1770472441016,0.53361713,69175.0,69133.0,0.3970487]
[1770472441208,0.53361713,69175.0,69133.0,0.4115287]
[1770472441607,0.53261713,69175.0,69133.0,0.4115287]
[1770472441815,0.53261713,69175.0,69133.0,0.3970487]
[1770472442018,0.53361713,69175.0,69125.0,0.14514902]
[1770472442314,0.53361713,69175.0,69111.0,0.3942109]
[1770472442315,0.67861713,69175.0,69111.0,0.3942109]
[1770472442511,0.53261713,69159.0,69111.0,0.3942109]
[1770472443713,0.53261713,69157.0,69111.0,0.3942109]
[1770472443913,0.53261713,69155.0,69111.0,0.3942109]
[1770472444217,0.53261713,69153.0,69109.0,0.14588613]
[1770472444423,0.53261713,69151.0,69109.0,0.12321084]
[1770472444716,0.14670647,69160.0,69109.0,0.12321084]
[1770472444717,0.014481,69129.0,69109.0,0.12321084]
[1770472445022,0.014482,69126.0,69109.0,0.12321084]
[1770472446220,0.54709813,69129.0,69109.0,0.12321084]
[1770472446416,0.00010274,69128.0,69109.0,0.12321084]
[1770472446719,0.54709813,69129.0,69109.0,0.12321084]
[1770472447016,0.014481,69127.0,69109.0,0.12321084]
[1770472447520,0.014481,69127.0,69105.0,0.014486]
[1770472447720,0.014481,69127.0,69106.0,0.38955986]
[1770472448020,0.57329593,69127.0,69106.0,0.38955986]
[1770472448416,0.55881493,69150.0,69120.0,0.37497612]
[1770472448822,0.014478,69142.0,69120.0,0.37497612]
[1770472449020,0.014477,69146.0,69123.0,0.37497612]
[1770472449916,0.014477,69146.0,69125.0,0.38552468]
[1770472450519,0.014477,69146.0,69127.0,0.38552468]
[1770472454829,0.57272387,69172.0,69138.0,0.38208081]
[1770472455523,0.57272387,69172.0,69125.0,0.014482]
[1770472455524,0.57272387,69172.0,69140.0,0.38174785]
[1770472460424,0.57272387,69172.0,69116.0,0.14181111]
[1770472460425,0.57272387,69172.0,69132.0,0.38202723]
[1770472461523,0.57272387,69172.0,69132.0,0.38302723]
[1770472462227,0.57272387,69172.0,69132.0,0.38202723]
[1770472474939,0.57272387,69159.0,69120.0,0.39954301]
[1770472475138,0.57272387,69159.0,69116.0,0.14181111]
[1770472475139,0.57272387,69132.0,69116.0,0.14181111]
[1770472475439,0.35,69128.0,69116.0,0.14181111]
[1770472475939,0.57272387,69132.0,69113.0,0.39954301]
[1770472476240,0.35,69114.0,69109.0,0.14406967]
[1770472476542,0.35,69114.0,69100.0,0.39919635]
[1770472476943,0.014485,69108.0,69093.0,0.23926602]
[1770472477344,9.8e-07,69086.0,69082.0,0.00896622]
[1770472477746,0.35,69094.0,69082.0,0.00896622]
[1770472477950,0.014485,69108.0,69082.0,0.00896622]
[1770472478354,0.014485,69108.0,69089.0,0.00896622]
[1770472478850,0.014486,69105.0,69089.0,0.00896622]
[1770472479053,0.014487,69102.0,69089.0,0.00896622]
[1770472479549,0.014486,69105.0,69089.0,0.00896622]
[1770472481647,0.014481,69128.0,69081.0,0.1429321]
[1770472481648,0.014489,69092.0,69081.0,0.1429321]
[1770472481848,0.086904,69116.0,69076.0,0.01934321]
[1770472481849,0.014489,69089.0,69076.0,0.01934321]
[1770472482249,0.01449,69085.0,69069.0,0.01934321]
[1770472482453,0.014491,69083.0,69069.0,0.01934321]
[1770472482655,0.58250802,69088.0,69069.0,0.01934321]
[1770472482848,0.01449,69087.0,69069.0,0.01934321]
[1770472483449,0.01449,69084.0,69069.0,0.01934321]
[1770472483952,0.01449,69087.0,69069.0,0.01934321]
[1770472484147,0.014489,69089.0,69069.0,0.01934321]
[1770472484444,0.014488,69097.0,69069.0,0.01934321]
[1770472484649,0.014488,69097.0,69068.0,0.14561555]
[1770472484650,0.014487,69101.0,69076.0,0.01801356]
[1770472485455,0.014485,69108.0,69082.0,0.03079933]
[1770472488057,0.014486,69106.0,69082.0,0.03079933]
[1770472490565,0.014486,69104.0,69082.0,0.03079933]
[1770472490764,0.014487,69102.0,69082.0,0.03079933]
[1770472490956,0.014486,69106.0,69082.0,0.03079933]
[1770472491155,0.014485,69109.0,69086.0,0.02903344]
[1770472491361,0.014485,69111.0,69088.0,0.02956513]
[1770472491660,0.58250802,69113.0,69088.0,0.02956513]
[1770472491661,0.014485,69109.0,69088.0,0.02956513]
[1770472492856,0.014486,69105.0,69088.0,0.02956513]
[1770472493058,0.014482,69123.0,69088.0,0.02956513]
[1770472493059,0.58250802,69110.0,69088.0,0.02956513]
[1770472493865,0.014486,69103.0,69088.0,0.02956513]
[1770472498262,0.014487,69101.0,69088.0,0.02956513]
[1770472498771,0.014487,69101.0,69080.0,0.02854279]
[1770472499961,0.014487,69099.0,69080.0,0.02854279]
[1770472500863,0.014487,69102.0,69084.0,0.02836409]
[1770472501973,0.58250802,69110.0,69084.0,0.02836409]
[1770472502370,0.014489,69092.0,69076.0,0.02988103]
[1770472502568,0.014489,69090.0,69076.0,0.02988103]
[1770472503674,0.58250802,69082.0,69060.0,0.07775489]
[1770472503877,0.014492,69077.0,69060.0,0.07775489]
[1770472504466,0.014488,69097.0,69068.0,0.11816455]
[1770472504467,0.58250802,69079.0,69068.0,0.11816455]
[1770472504675,0.58250802,69096.0,69067.0,0.07775489]
[1770472504873,0.014487,69099.0,69080.0,0.07775489]
[1770472505174,0.59699402,69106.0,69084.0,0.07775489]
[1770472505572,0.014486,69104.0,69084.0,0.07775489]
[1770472505772,0.014487,69100.0,69084.0,0.07775489]
[1770472505972,0.014486,69103.0,69084.0,0.07775489]
[1770472506172,0.014487,69101.0,69084.0,0.07775489]
[1770472508479,0.014483,69117.0,69084.0,0.07775489]
[1770472508674,0.014486,69103.0,69086.0,0.05579106]
[1770472508976,0.014486,69103.0,69066.0,0.15683378]
[1770472508977,0.014488,69097.0,69079.0,0.05579106]
[1770472509179,0.014487,69100.0,69079.0,0.05579106]
[1770472510172,0.56473631,69101.0,69079.0,0.05579106]
[1770472510372,0.56448281,69100.0,69079.0,0.05579106]
[1770472510779,0.014487,69098.0,69080.0,0.07104254]
[1770472510981,0.56448281,69107.0,69083.0,0.05655154]
[1770472511776,0.014487,69102.0,69085.0,0.05633588]
[1770472512074,0.56448281,69107.0,69085.0,0.05633588]
[1770472512271,0.5645547,69105.0,69085.0,0.05633588]
[1770472512472,0.014487,69101.0,69085.0,0.05633588]
[1770472512779,0.014487,69099.0,69085.0,0.05633588]
[1770472513172,0.014487,69102.0,69085.0,0.05633588]
[1770472513976,0.014486,69103.0,69085.0,0.05633588]
[1770472514179,0.5645547,69105.0,69085.0,0.05633588]
[1770472514572,0.00014137,69104.0,69085.0,0.05633588]
[1770472514772,0.5645547,69105.0,69085.0,0.05633588]
[1770472514977,0.014487,69100.0,69085.0,0.05633588]
[1770472515178,0.00012937,69099.0,69085.0,0.05633588]
[1770472515574,0.014487,69100.0,69085.0,0.05633588]
[1770472516281,0.00012939,69099.0,69085.0,0.05633588]
[1770472516480,0.00013562,69098.0,69085.0,0.05633588]
[1770472516781,0.014487,69100.0,69085.0,0.05633588]
[1770472518372,0.56448929,69097.0,69078.0,0.0565321]
[1770472518776,0.00011504,69096.0,69078.0,0.0565321]
[1770472518971,0.56448929,69097.0,69078.0,0.0565321]
[1770472519282,0.00015002,69095.0,69078.0,0.0565321]
[1770472519483,0.00015002,69094.0,69078.0,0.0565321]
[1770472519674,0.00015002,69094.0,69079.0,0.014491]
[1770472519871,0.00015002,69094.0,69080.0,0.04780361]
[1770472522085,0.01463802,69094.0,69080.0,0.04780361]
[1770472523387,0.014489,69092.0,69080.0,0.04780361]
[1770472523690,0.00012722,69091.0,69080.0,0.04780361]
[1770472529187,0.014489,69090.0,69067.0,0.1215]
[1770472529488,0.014489,69090.0,69076.0,0.05464166]
[1770472530589,0.014489,69090.0,69077.0,0.05464166]
[1770472531991,0.00011271,69089.0,69077.0,0.05464166]
[1770472532193,0.00011271,69089.0,69076.0,0.014492]
[1770472532194,0.56499475,69089.0,69070.0,0.05535386]
[1770472532388,0.56488204,69089.0,69070.0,0.05535386]
[1770472532589,0.014491,69079.0,69070.0,0.05535386]
[1770472532795,0.00010903,69078.0,69070.0,0.05535386]
[1770472533595,0.01461687,69077.0,69070.0,0.05535386]
[1770472533895,0.00015002,69076.0,69070.0,0.05535386]
[1770472534392,0.00015002,69076.0,69066.0,0.14233978]
[1770472537493,0.56454594,69071.0,69052.0,0.05636215]
[1770472537795,0.56454594,69071.0,69041.0,0.00011737]
[1770472537796,0.014495,69063.0,69059.0,0.09864392]
[1770472537996,0.014495,69063.0,69059.0,0.09850519]
[1770472538399,0.57903994,69066.0,69046.0,0.05636215]
[1770472538890,0.014495,69061.0,69046.0,0.05636215]
[1770472540393,0.014495,69064.0,69046.0,0.05636215]
[1770472540894,0.014495,69062.0,69046.0,0.05636215]
[1770472542191,0.014495,69062.0,69050.0,0.28501943]
[1770472542500,0.014495,69062.0,69051.0,0.0783499]
[1770472543394,0.014489,69088.0,69050.0,0.28501943]
[1770472543395,0.014492,69076.0,69054.0,0.07310904]
[1770472543594,0.57345365,69085.0,69061.0,0.07310904]
[1770472543797,0.55896365,69084.0,69061.0,0.07310904]
[1770472544099,0.00012731,69083.0,69061.0,0.07310904]
[1770472544401,0.014492,69076.0,69061.0,0.07310904]
[1770472545403,0.55896365,69083.0,69061.0,0.07310904]
[1770472545705,0.00015002,69082.0,69061.0,0.07310904]
[1770472545895,0.00015002,69081.0,69061.0,0.07310904]
[1770472546214,0.55813943,69079.0,69051.0,0.07558168]
[1770472546393,0.55813943,69077.0,69051.0,0.07558168]
[1770472546901,0.55813943,69075.0,69051.0,0.07558168]
[1770472547101,0.55813943,69073.0,69051.0,0.07558168]
[1770472547399,0.5576663,69071.0,69051.0,0.07558168]
[1770472548203,0.014493,69070.0,69051.0,0.07558168]
[1770472548705,0.014494,69068.0,69051.0,0.07558168]
[1770472549799,0.014492,69074.0,69057.0,0.07479841]
[1770472550002,0.014492,69077.0,69057.0,0.07479841]
[1770472550199,0.014491,69080.0,69057.0,0.07479841]
[1770472550501,0.014491,69080.0,69062.0,0.07479841]
[1770472551598,0.014492,69075.0,69062.0,0.07479841]
[1770472552506,0.55840052,69081.0,69057.0,0.001]
[1770472553008,0.55840052,69081.0,69054.0,0.07539148]
[1770472553805,0.014493,69070.0,69057.0,0.001]
[1770472553997,0.57160889,69070.0,69057.0,0.001]
[1770472554400,0.57160889,69070.0,69050.0,0.36367174]
[1770472555495,0.57160889,69070.0,69051.0,0.08001197]
[1770472558321,0.014494,69068.0,69051.0,0.08001197]
[1770472558615,0.014494,69065.0,69051.0,0.08001197]
[1770472558921,0.56967143,69065.0,69051.0,0.08001197]
[1770472559121,0.014495,69063.0,69051.0,0.08001197]
[1770472559621,0.014495,69063.0,69050.0,0.28501943]
[1770472559622,0.57087406,69063.0,69050.0,0.28501943]
[1770472560015,0.57087406,69061.0,69050.0,0.28501943]
[1770472560718,0.014496,69059.0,69050.0,0.28501943]
[1770472560918,0.57087506,69059.0,69050.0,0.28501943]
[1770472561418,0.014493,69070.0,69050.0,0.28501943]
[1770472561419,0.57029544,69057.0,69050.0,0.28501943]
[1770472561822,0.55579944,69057.0,69050.0,0.28501943]
[1770472562022,0.014495,69060.0,69050.0,0.28501943]
[1770472562423,0.55579944,69059.0,69050.0,0.25222441]
[1770472562726,0.55579944,69059.0,69043.0,0.37302934]
[1770472563823,0.014496,69056.0,69043.0,0.37302934]
[1770472565524,0.56131973,69063.0,69044.0,0.06604079]
[1770472565715,0.014495,69061.0,69044.0,0.06604079]
[1770472566719,0.56131973,69063.0,69050.0,0.28911473]
[1770472567430,0.56228294,69069.0,69051.0,0.06834355]
[1770472567628,0.014494,69068.0,69051.0,0.06834355]
[1770472570326,0.55977594,69084.0,69051.0,0.06834355]
[1770472570623,0.55977594,69084.0,69053.0,0.07067217]
[1770472574232,0.55977594,69084.0,69057.0,0.09682644]
[1770472579120,0.55977594,69084.0,69050.0,0.28911473]
[1770472579826,0.55977594,69084.0,69050.0,0.38527629]
[1770472582630,0.55977594,69084.0,69050.0,0.28911473]
[1770472582933,0.54911058,69081.0,69050.0,0.28911473]
[1770472583928,0.014496,69059.0,69050.0,0.28911473]
[1770472584133,0.014496,69057.0,69050.0,0.28911473]
[1770472584331,0.014496,69055.0,69050.0,0.28911473]
[1770472584735,0.56253853,69055.0,69043.0,0.29042769]
[1770472588136,0.56253853,69055.0,69050.0,0.29639913]
[1770472589235,0.014496,69058.0,69050.0,0.29639913]
[1770472590040,0.014496,69056.0,69050.0,0.29639913]
[1770472591338,0.014496,69059.0,69050.0,0.29639913]
[1770472592334,0.54919564,69066.0,69051.0,0.10241305]
[1770472592539,0.014495,69063.0,69051.0,0.10241305]
[1770472595441,0.54919564,69066.0,69051.0,0.10241305]
[1770472598445,0.014492,69077.0,69051.0,0.10241305]
[1770472598645,0.55112093,69076.0,69051.0,0.10241305]
[1770472600738,0.55112093,69076.0,69054.0,0.10370336]
[1770472602144,0.55112093,69076.0,69056.0,0.10338052]
[1770472602743,0.55112093,69076.0,69050.0,0.29639913]
[1770472604849,0.55112093,69076.0,69054.0,0.014496]
[1770472605050,0.55112093,69092.0,69061.0,0.12743296]
[1770472605850,0.55112093,69092.0,69063.0,0.13005413]
[1770472607450,0.55112093,69092.0,69067.0,0.014494]
[1770472607647,0.55112093,69092.0,69067.0,0.17145827]
[1770472608153,0.55112093,69092.0,69067.0,0.15696427]
[1770472612060,0.55112093,69092.0,69067.0,0.17145827]
[1770472612955,0.55112093,69092.0,69067.0,0.15696427]